bitfinex/quotes_ETHUSD_20240718
["timestamp","ask_amount","ask_price","bid_price","bid_amount"]
[1721331125120,2.041,3401.1,3400.9,1.53314237]
[1721331126026,2.041,3401.1,3400.4,7.44]
[1721331126229,2.041,3400.7,3400.4,7.44]
[1721331126522,4.98157,3400.7,3400.4,7.44]
[1721331126740,3.60891229,3400.6,3400.2,0.61534177]
[1721331126888,2.041,3400.3,3400.2,0.61534177]
[1721331127089,5.53191,3400.3,3400.2,0.61534177]
[1721331127289,5.53191,3400.3,3399.6,8.36301265]
[1721331127290,2.4283,3400.2,3399.6,8.36301265]
[1721331127497,2.041,3399.7,3399.1,1.23068354]
[1721331127726,2.041,3399.2,3399.1,1.23068354]
[1721331128042,2.94119,3400.0,3399.1,1.23068354]
[1721331128197,2.041,3399.5,3399.1,1.23068354]
[1721331131043,2.041,3399.6,3399.1,1.23068354]
[1721331131712,2.041,3399.6,3399.1,2.12720189]
[1721331132463,2.041,3399.6,3399.1,1.23068354]
[1721331136269,2.041,3399.6,3398.9,7.44]
[1721331137331,2.94041,3400.9,3399.0,0.2945]
[1721331137570,2.041,3400.2,3399.0,0.2945]
[1721331138477,2.041,3399.8,3399.0,0.2945]
[1721331138765,2.041,3400.2,3399.2,2.4994]
[1721331139085,2.041,3400.6,3399.3,3.3915]
[1721331139359,2.041,3400.6,3399.3,3.4503162]
[1721331139563,2.041,3400.6,3399.5,0.2945]
[1721331140126,5.20744,3401.7,3399.7,3.3915]
[1721331140127,2.041,3401.0,3399.7,3.3915]
[1721331140331,2.041,3401.0,3399.9,0.2945]
[1721331142169,2.041,3401.4,3400.0,0.05880826]
[1721331142376,2.93926,3402.3,3400.0,0.05880826]
[1721331142377,2.041,3401.8,3400.5,0.2945]
[1721331142575,2.041,3401.8,3400.8,0.2945]
[1721331142769,2.041,3401.8,3401.0,0.2945]
[1721331143079,2.041,3401.8,3400.7,2.4581]
[1721331143890,2.041,3401.8,3400.8,0.2945]
[1721331144552,2.041,3401.8,3400.7,2.4581]
[1721331144990,2.041,3401.8,3400.8,0.2945]
[1721331145160,2.041,3401.8,3400.8,1.31376]
[1721331146589,2.041,3401.4,3400.8,1.01926]
[1721331147495,2.041,3401.4,3400.6,7.44]
[1721331147796,2.041,3401.4,3400.6,7.7345]
[1721331150692,2.041,3401.8,3400.7,2.3744]
[1721331151110,2.041,3401.8,3400.7,5.3744]
[1721331151312,2.041,3401.8,3400.8,1.40479048]
[1721331151538,2.041,3401.8,3400.8,4.40479048]
[1721331152823,2.041,3401.8,3400.8,4.69929048]
[1721331153024,2.041,3402.2,3400.9,2.782]
[1721331153180,2.041,3402.6,3401.3,0.2945]
[1721331155228,2.041,3401.8,3401.2,2.4875]
[1721331155390,2.041,3401.8,3401.1,7.44]
[1721331158933,5.314,3402.3,3401.1,7.44]
[1721331158934,2.041,3401.3,3401.1,7.44]
[1721331159146,0.2041,3401.2,3401.1,7.44]
[1721331163246,2.041,3401.3,3400.4,0.2945]
[1721331167149,2.041,3401.3,3400.3,7.44]
[1721331167649,2.041,3400.9,3400.3,7.44]
[1721331169191,2.041,3400.9,3400.0,7.7345]
[1721331169658,2.041,3400.5,3400.0,7.44]
[1721331169853,2.041,3400.5,3399.7,0.2945]
[1721331170861,2.041,3401.1,3399.8,2.731]
[1721331171065,2.041,3401.5,3400.0,0.2945]
[1721331171251,2.041,3401.1,3400.0,0.2945]
[1721331171451,0.2041,3401.0,3400.0,0.2945]
[1721331172171,2.041,3401.1,3400.0,0.2945]
[1721331172371,2.041,3401.1,3400.0,2.3591]
[1721331172550,2.041,3401.6,3400.0,2.3591]
[1721331172756,2.041,3401.6,3400.4,3.097]
[1721331173051,2.041,3402.0,3400.6,2.3591]
[1721331173250,2.041,3402.0,3400.7,1.14556971]
[1721331173488,2.041,3402.0,3400.8,0.2945]
[1721331173688,2.041,3402.0,3400.8,0.3532914]
[1721331173890,2.041,3402.4,3400.8,0.3532914]
[1721331174067,2.041,3402.4,3401.0,0.2945]
[1721331174266,2.041,3402.4,3401.2,0.2945]
[1721331175199,1e-08,3402.8,3401.3,0.05878489]
[1721331175364,1e-08,3402.8,3401.2,3.2945]
[1721331176410,2.041,3402.5,3401.2,3.2945]
[1721331177786,0.05891229,3402.4,3401.2,3.2945]
[1721331177984,2.041,3402.1,3401.2,3.2945]
[1721331178364,2.041,3402.1,3401.2,0.2945]
[1721331178697,2.041,3402.1,3401.1,2.6415]
[1721331179981,2.041,3402.5,3401.1,2.6415]
[1721331180417,0.05891229,3402.4,3401.1,2.6415]
[1721331180592,2.041,3402.5,3401.2,0.26415]
[1721331181010,2.041,3402.5,3401.2,3.21415]
[1721331181520,2.041,3402.5,3401.3,0.2945]
[1721331182404,2.041,3402.5,3401.2,3.21415]
[1721331182597,2.041,3402.5,3401.3,0.2945]
[1721331182814,2.041,3402.5,3401.4,0.585565]
[1721331183706,2.041,3402.5,3401.5,0.2945]
[1721331184116,2.041,3402.5,3401.4,0.585565]
[1721331184622,2.041,3402.5,3401.5,0.2945]
[1721331186088,1e-08,3402.8,3401.7,0.2945]
[1721331186296,1e-08,3402.8,3401.9,0.2945]
[1721331188004,0.0589123,3402.8,3401.9,0.2945]
[1721331188208,1e-08,3402.8,3401.9,0.2945]
[1721331189244,1e-08,3402.8,3402.0,0.05878366]
[1721331189536,1e-08,3402.8,3402.0,2.3449]
[1721331189698,1e-08,3402.8,3402.1,0.76437186]
[1721331190033,1e-08,3402.8,3402.1,3.76437186]
[1721331190248,1e-08,3402.8,3402.2,0.05877592]
[1721331191106,1e-08,3402.8,3402.1,3.76437186]
[1721331192255,1e-08,3402.8,3402.1,0.76437186]
[1721331192414,1e-08,3402.8,3402.0,2.3449]
[1721331199573,1e-08,3402.8,3402.2,0.2945]
[1721331199884,1e-08,3402.8,3402.4,0.2945]
[1721331200085,1e-08,3402.8,3402.5,0.05876828]
[1721331200588,1e-08,3402.8,3402.7,0.2945]
[1721331200735,1e-08,3402.8,3402.7,0.80653772]
[1721331200935,2.041,3404.1,3402.7,0.80653772]
[1721331201133,2.041,3404.1,3402.8,0.05876092]
[1721331201846,2.041,3404.1,3402.7,0.74777683]
[1721331203587,2.041,3404.1,3402.8,0.05875882]
[1721331203805,0.46046878,3404.4,3403.0,4.0928]
[1721331204008,2.041,3404.9,3403.3,0.2945]
[1721331204512,2.041,3404.9,3403.3,3.2945]
[1721331205052,2.041,3404.9,3403.3,3.2445]
[1721331205790,2.041,3404.9,3403.5,0.1945]
[1721331205950,2.041,3404.9,3403.7,2.2841]
[1721331208662,0.46034648,3405.2,3403.8,3.097]
[1721331208861,2.041,3405.3,3403.9,3.0]
[1721331209926,2.041,3405.3,3404.0,2.2927]
[1721331210399,2.041,3405.3,3404.0,2.2427]
[1721331210561,2.041,3405.3,3404.1,0.53640049]
[1721331211056,2.041,3405.3,3404.1,3.53640049]
[1721331211769,0.05891229,3405.2,3404.1,3.53640049]
[1721331212205,2.041,3404.5,3403.9,7.44]
[1721331212354,2.041,3404.5,3403.6,7.44]
[1721331213304,2.93694,3404.9,3403.7,2.3609]
[1721331213305,2.041,3404.9,3403.7,2.3609]
[1721331214026,2.041,3405.3,3403.8,1.7]
[1721331214194,2.041,3405.3,3403.9,1.17954]
[1721331214396,2.041,3405.3,3404.0,2.3609]
[1721331214638,2.041,3405.3,3404.0,5.3609]
[1721331215933,3.0,3405.6,3404.0,5.41963642]
[1721331216224,2.50130033,3405.7,3404.2,1.7]
[1721331216424,2.50130033,3405.7,3404.4,2.4011]
[1721331216593,2.041,3405.7,3404.5,0.0587331]
[1721331217423,2.041,3406.1,3404.6,0.05858155]
[1721331217627,2.041,3406.1,3404.7,2.4835]
[1721331218809,2.041,3406.1,3404.8,0.05872884]
[1721331219001,2.041,3406.1,3404.9,0.25422288]
[1721331219610,2.041,3406.1,3405.0,0.05872434]
[1721331220636,2.041,3406.1,3404.9,0.25422288]
[1721331220846,2.041,3406.1,3405.0,2.4481]
[1721331221859,0.1474535,3406.2,3405.3,2.3236]
[1721331222141,0.1474535,3406.2,3405.5,0.2945]
[1721331223008,0.1474535,3406.2,3405.5,0.35321219]
[1721331223209,0.1474535,3406.2,3405.7,0.2945]
[1721331223409,1e-08,3406.2,3405.7,0.2945]
[1721331225424,1e-08,3406.2,3405.7,0.35320904]
[1721331225630,1e-08,3406.2,3405.8,0.49696993]
[1721331226050,1e-08,3406.2,3405.8,0.4382609]
[1721331227527,1e-08,3406.2,3405.8,0.49696995]
[1721331227715,1e-08,3406.2,3405.9,5.3706]
[1721331229953,1e-08,3406.2,3405.9,2.2625]
[1721331230168,1e-08,3406.2,3406.0,0.29952609]
[1721331231765,1e-08,3406.2,3406.0,3.29952609]
[1721331232276,1e-08,3406.2,3406.1,1.7]
[1721331232473,2.041,3407.8,3406.2,0.2945]
[1721331232983,2.041,3407.8,3406.3,2.7321]
[1721331233278,2.041,3407.8,3406.4,0.44907971]
[1721331234554,2.041,3407.8,3406.4,3.44907971]
[1721331234941,3.0,3408.1,3406.4,3.50777509]
[1721331235146,2.041,3407.8,3406.4,3.50777509]
[1721331236185,2.041,3407.8,3406.5,5.5269]
[1721331236397,2.041,3407.8,3406.6,1.22060697]
[1721331237890,0.45994103,3408.3,3406.8,0.2945]
[1721331238096,0.45994103,3408.3,3407.0,0.2945]
[1721331238248,2.041,3408.6,3407.3,0.2945]
[1721331238455,0.5041,3408.5,3407.4,0.86321]
[1721331238678,2.041,3408.6,3407.4,0.86321]
[1721331238861,2.041,3408.6,3407.4,0.2945]
[1721331238862,0.05891229,3408.5,3407.4,0.2945]
[1721331239071,2.041,3408.6,3407.2,2.2956]
[1721331239072,4.97477,3408.6,3407.2,2.2956]
[1721331239270,2.041,3408.6,3407.3,0.2945]
[1721331240974,4.97475,3408.6,3407.3,0.2945]
[1721331241176,4.97475,3408.6,3407.2,2.2956]
[1721331241379,0.797475,3408.5,3407.3,0.2945]
[1721331242172,2.041,3408.2,3407.3,0.2945]
[1721331242383,2.041,3407.8,3406.9,3.0]
[1721331242567,2.041,3407.8,3407.0,0.2945]
[1721331243370,2.538518,3407.8,3407.0,0.2945]
[1721331243565,2.538518,3407.8,3406.9,0.2945]
[1721331244770,2.041,3407.8,3406.9,0.2945]
[1721331247326,2.041,3407.8,3406.8,9.7356]
[1721331247991,2.041,3407.8,3406.9,0.2945]
[1721331248898,5.2481,3408.2,3406.9,0.2945]
[1721331248899,2.041,3408.2,3406.9,0.2945]
[1721331249093,0.2041,3408.1,3407.1,0.2945]
[1721331250229,0.2041,3408.1,3406.9,0.2945]
[1721331252132,4.4489,3408.2,3406.9,0.2945]
[1721331252133,2.041,3408.2,3406.9,0.2945]
[1721331252320,2.041,3408.2,3406.9,3.2945]
[1721331254143,0.797475,3408.5,3406.9,3.35318732]
[1721331254297,4.3173,3408.6,3406.9,3.35318732]
[1721331254298,2.041,3408.6,3407.1,0.2945]
[1721331254501,2.041,3408.6,3407.1,3.2945]
[1721331255543,2.041,3408.2,3407.1,3.2945]
[1721331256840,0.05891229,3408.1,3407.1,3.0]
[1721331257047,0.05891229,3408.1,3407.0,2.298]
[1721331257048,0.2041,3408.1,3407.0,2.298]
[1721331257265,0.2041,3408.1,3407.1,0.2945]
[1721331257424,0.2041,3408.1,3407.1,3.2945]
[1721331257844,0.2041,3408.1,3407.1,3.0]
[1721331258054,2.041,3408.2,3407.0,2.298]
[1721331258055,2.041,3408.2,3407.2,0.8243]
[1721331260339,2.041,3408.2,3407.0,2.298]
[1721331260340,2.041,3407.8,3406.8,7.44]
[1721331261228,2.041,3407.8,3406.9,0.2945]
[1721331262868,2.4451,3408.3,3406.9,0.2945]
[1721331262869,2.041,3408.2,3406.9,1.82523218]
[1721331263052,2.041,3408.2,3407.3,0.2945]
[1721331263237,2.041,3408.6,3407.3,0.2945]
[1721331263444,2.041,3408.6,3407.4,0.41759171]
[1721331265436,2.041,3408.6,3407.5,2.55083878]
[1721331265629,2.041,3408.6,3407.4,0.71209171]
[1721331265830,0.45983328,3409.0,3407.5,2.55079355]
[1721331266031,0.45983328,3409.0,3407.6,7.24294079]
[1721331266339,2.041,3409.1,3407.7,4.93235487]
[1721331266566,2.4171,3409.2,3407.7,2.3817]
[1721331266567,2.041,3408.7,3407.7,2.3817]
[1721331271452,2.041,3408.7,3407.8,1.02024341]
[1721331271676,2.041,3408.7,3407.7,2.3817]
[1721331271879,2.041,3408.7,3407.8,0.53817]
[1721331272553,2.041,3408.7,3407.9,1.02023611]
[1721331272792,2.041,3408.7,3407.8,0.53817]
[1721331272951,2.041,3408.7,3407.9,1.02020064]
[1721331273154,2.041,3408.7,3407.8,0.53817]
[1721331273460,2.041,3408.7,3407.9,0.35880172]
[1721331274193,2.041,3408.7,3407.8,3.53817]
[1721331276203,2.041,3408.7,3407.9,1.07885412]
[1721331276437,2.041,3409.1,3407.9,0.05867507]
[1721331276574,2.041,3409.1,3407.8,3.5968437]
[1721331276918,2.041,3409.1,3407.9,1.77042946]
[1721331277069,2.041,3409.1,3407.9,0.75022255]
[1721331277270,2.041,3409.1,3408.0,0.05867369]
[1721331277741,2.041,3409.1,3408.1,1.02014152]
[1721331278011,2.041,3409.1,3408.0,1.53021416]
[1721331278210,2.041,3409.1,3408.1,3.56529783]
[1721331278418,2.041,3409.1,3408.4,0.2945]
[1721331278924,2.041,3409.5,3408.4,0.2945]
[1721331280878,2.041,3409.5,3408.4,3.2945]
[1721331281079,0.1474535,3409.6,3408.4,3.2945]
[1721331281384,0.1474535,3409.6,3408.6,0.2945]
[1721331285917,0.1474535,3409.6,3408.8,0.2945]
[1721331287395,0.1474535,3409.6,3408.8,3.2945]
[1721331288714,0.1474535,3409.6,3408.9,0.0586556]
[1721331288912,0.1474535,3409.6,3409.1,2.2551]
[1721331289111,0.1474535,3409.6,3409.2,0.58336752]
[1721331289319,0.1474535,3409.6,3409.3,0.05865201]
[1721331290314,0.1474535,3409.6,3409.4,0.05865103]
[1721331290518,0.1474535,3409.6,3409.3,2.93315]
[1721331290724,0.1474535,3409.6,3409.2,6.45793556]
[1721331290878,0.1474535,3409.6,3409.3,0.76367699]
[1721331291699,0.1474535,3409.6,3409.3,3.75546118]
[1721331291899,0.1474535,3409.6,3409.4,3.0]
[1721331292215,0.1474535,3409.6,3409.5,2.6074]
[1721331292216,1e-08,3409.6,3409.5,2.6074]
[1721331293618,1e-08,3409.6,3409.5,5.6074]
[1721331293822,1e-08,3409.6,3409.5,6.62242763]
[1721331294709,2.041,3411.1,3409.5,9.55540763]
[1721331294897,2.041,3411.1,3409.7,0.2945]
[1721331296617,2.041,3410.7,3409.7,0.2945]
[1721331296820,2.041,3410.3,3409.7,0.2945]
[1721331297004,2.041,3410.3,3409.7,0.71209171]
[1721331297923,2.041,3410.7,3409.7,0.71209171]
[1721331298088,2.041,3410.7,3409.8,2.2617]
[1721331298984,2.041,3411.1,3409.8,5.2617]
[1721331299589,3.0,3411.4,3409.8,5.2617]
[1721331299590,2.041,3411.4,3409.8,5.2617]
[1721331299784,2.041,3411.4,3409.9,0.52471556]
[1721331299996,2.041,3411.0,3409.9,3.52471556]
[1721331300327,2.2881,3410.9,3409.9,3.52471556]
[1721331300638,2.041,3410.6,3409.9,0.52471556]
[1721331300797,2.308,3410.1,3409.4,7.44]
[1721331300997,2.041,3409.8,3409.4,7.44]
[1721331301560,2.041,3410.2,3409.4,7.44]
[1721331301691,2.041,3410.6,3409.5,2.7693]
[1721331301890,2.591,3411.0,3409.6,1.02093]
[1721331302322,2.041,3410.6,3409.6,1.02093]
[1721331302696,2.041,3410.6,3409.6,4.02093]
[1721331302938,2.041,3410.6,3409.7,0.2945]
[1721331303147,2.041,3411.0,3409.7,0.2945]
[1721331303431,2.041,3411.0,3409.9,1.7]
[1721331303631,2.041,3411.0,3409.9,4.7]
[1721331304304,2.041,3411.0,3409.9,3.0]
[1721331304632,2.041,3411.0,3409.9,4.7]
[1721331304820,2.041,3411.0,3409.9,4.75863411]
[1721331305025,2.041,3411.4,3410.0,3.11275889]
[1721331305204,2.041,3411.4,3410.1,0.05863322]
[1721331305933,2.041,3411.4,3410.0,3.11275889]
[1721331306152,2.041,3411.4,3410.0,10.55275889]
[1721331307117,2.041,3411.4,3410.2,2.3666]
[1721331307416,2.041,3411.4,3410.3,1.02093]
[1721331308009,2.041,3411.4,3410.3,4.02093]
[1721331310114,2.041,3411.0,3410.3,4.02093]
[1721331310703,2.041,3411.0,3410.3,1.02093]
[1721331311026,3.097,3411.7,3410.0,8.29105889]
[1721331311027,2.041,3410.6,3410.0,8.29105889]
[1721331311223,2.2873,3410.9,3409.7,7.7345]
[1721331311224,2.041,3410.2,3409.7,7.7345]
[1721331312357,2.041,3410.6,3409.7,7.7345]
[1721331313802,2.041,3410.6,3409.8,3.0]
[1721331317034,2.041,3410.6,3409.9,2.4331]
[1721331318234,2.041,3411.0,3409.9,2.4331]
[1721331318432,2.041,3411.4,3410.1,2.2786]
[1721331318631,2.041,3411.4,3410.1,5.2786]
[1721331319445,2.041,3411.0,3410.1,5.2786]
[1721331320742,2.041,3411.0,3410.2,1.7]
[1721331320928,2.041,3411.0,3410.2,4.7]
[1721331321128,2.041,3411.4,3410.3,1.129536]
[1721331321330,2.041,3411.4,3410.3,4.129536]
[1721331322907,2.041,3411.4,3410.4,2.2653]
[1721331323111,2.041,3411.4,3410.4,5.2653]
[1721331323343,2.041,3411.4,3410.4,5.5598]
[1721331323545,2.041,3411.4,3410.5,1.5829336]
[1721331323744,2.041,3411.4,3410.5,4.5829336]
[1721331327567,2.0947178,3411.8,3410.7,2.2896]
[1721331327763,2.0947178,3411.8,3410.7,5.2896]
[1721331327962,2.0947178,3411.8,3410.8,1.13807829]
[1721331328129,2.0947178,3411.8,3410.8,4.13807829]
[1721331331069,2.0947178,3411.8,3410.9,2.4172]
[1721331331948,0.059484,3411.7,3410.9,2.4172]
[1721331332265,2.0947178,3411.8,3410.9,2.4172]
[1721331332466,2.0947178,3411.8,3411.0,1.39952783]
[1721331334171,2.0947178,3411.8,3411.1,2.4109]
[1721331334172,0.0537178,3411.8,3411.1,2.4109]
[1721331334884,0.0537178,3411.8,3411.1,2.7054]
[1721331337889,0.0537178,3411.8,3411.1,4.4054]
[1721331338172,0.0537178,3411.8,3411.2,0.88049278]
[1721331340050,0.0537178,3411.8,3411.2,0.93910704]
[1721331340390,0.0537178,3411.8,3411.3,2.3742]
[1721331342179,0.0537178,3411.8,3411.3,5.3742]
[1721331344162,0.0537178,3411.8,3411.4,2.4457]
[1721331344362,0.0537178,3411.8,3411.5,0.44099128]
[1721331345362,2.0947178,3411.8,3411.5,0.44099128]
[1721331345567,2.0947178,3411.8,3411.1,0.2945]
[1721331345568,2.0947178,3411.8,3411.0,2.4457]
[1721331345774,2.041,3411.4,3411.0,2.4457]
[1721331346197,2.041,3411.7,3411.0,2.4457]
[1721331346403,2.041,3411.7,3410.8,0.2945]
[1721331359915,2.041,3411.7,3410.9,2.7103]
[1721331360104,2.041,3411.7,3411.0,1.01503]
[1721331360289,2.041,3411.7,3411.0,1.30953]
[1721331360917,2.041,3411.7,3410.7,7.44]
[1721331360918,2.54701229,3411.6,3410.8,0.2936]
[1721331361553,2.041,3411.3,3410.8,0.2936]
[1721331363568,2.041,3411.3,3410.7,7.44]
[1721331364031,2.041,3410.9,3410.7,7.44]
[1721331364278,2.041,3410.9,3410.3,12.6236]
[1721331364279,4.489,3410.9,3410.3,0.2936]
[1721331364444,2.041,3410.5,3410.3,0.2936]
[1721331365170,4.489,3410.9,3410.3,0.2936]
[1721331365849,4.489,3410.9,3410.2,7.44]
[1721331366647,7.42077,3410.9,3410.2,7.44]
[1721331366828,3.54080229,3410.8,3410.2,7.44]
[1721331367048,2.041,3410.5,3410.2,7.44]
[1721331367746,4.489,3410.9,3410.2,7.44]
[1721331368056,2.041,3410.9,3410.2,7.44]
[1721331368419,4.97278,3410.9,3410.2,7.44]
[1721331368634,2.041,3410.9,3410.2,7.44]
[1721331368859,2.041,3410.9,3410.2,8.184]
[1721331369057,2.041,3410.9,3410.2,7.44]
[1721331369264,2.041,3410.5,3410.2,7.44]
[1721331369419,3.04681229,3410.4,3409.7,7.44]
[1721331369622,2.041,3409.9,3409.2,8.04947271]
[1721331369866,3.04681229,3410.4,3409.2,8.04947271]
[1721331369867,2.041,3409.5,3409.2,8.04947271]
[1721331370064,4.4789,3410.4,3409.3,2.4394]
[1721331370355,4.4789,3410.4,3409.4,0.2936]
[1721331370594,4.4789,3410.4,3409.2,8.97631452]
[1721331371372,2.041,3410.4,3409.5,0.2936]
[1721331371579,2.041,3410.4,3409.6,0.43644]
[1721331373289,2.041,3410.0,3409.2,8.36684181]
[1721331373960,3.0,3411.3,3409.3,0.2936]
[1721331373961,2.041,3410.4,3409.3,0.2936]
[1721331376898,2.041,3410.4,3409.2,8.36684181]
[1721331377585,0.55,3410.3,3409.2,8.36684181]
[1721331377808,1.0444,3410.3,3409.3,0.2936]
[1721331378007,1.0444,3410.3,3409.2,8.36684181]
[1721331378216,2.041,3410.0,3409.2,8.36684181]
[1721331378793,2.041,3410.0,3409.3,0.2936]
[1721331379437,2.041,3410.0,3409.2,8.36684181]
[1721331379585,2.041,3410.0,3409.3,1.06461418]
[1721331379787,2.041,3410.0,3409.4,0.2936]
[1721331379986,2.041,3410.0,3409.3,1.06461418]
[1721331380401,0.55,3410.3,3409.3,1.06461418]
[1721331380615,0.55,3410.5,3409.3,1.06461418]
[1721331380809,0.55,3410.5,3409.5,0.2936]
[1721331381017,2.4236,3411.1,3409.6,2.3245]
[1721331381185,5.35521,3411.1,3409.7,7.7336]
[1721331381390,2.93187,3410.8,3409.7,7.44]
[1721331381823,2.93195,3410.7,3409.7,7.44]
[1721331382045,2.041,3410.9,3409.7,7.44]
[1721331382046,0.497295,3410.6,3409.7,7.44]
[1721331382330,3.48824729,3410.6,3409.7,7.44]
[1721331382487,2.9316,3410.5,3409.7,7.44]
[1721331382693,7.90473,3410.5,3409.7,7.44]
[1721331382934,4.9726,3410.5,3409.7,7.44]
[1721331383158,0.44595762,3410.4,3409.7,7.44]
[1721331383363,0.55,3410.3,3409.7,7.44]
[1721331384113,0.55,3410.3,3409.3,8.50461418]
[1721331384560,4.4226,3410.5,3409.3,8.50461418]
[1721331384944,4.4226,3410.5,3409.4,0.2936]
[1721331385122,4.4226,3410.5,3409.5,1.41487142]
[1721331385519,2.3816,3410.5,3409.5,1.41487142]
[1721331385766,4.5128,3410.9,3409.5,1.41487142]
[1721331385968,3.55,3410.8,3409.6,2.2934]
[1721331386416,0.55,3410.8,3409.7,0.2936]
[1721331386617,4.5128,3410.9,3409.8,0.96442714]
[1721331386906,2.3502,3411.2,3409.8,0.96442714]
[1721331387084,0.55,3411.1,3409.9,7.44]
[1721331387354,0.55,3411.1,3410.0,0.2936]
[1721331388261,2.3502,3411.2,3410.2,0.2936]
[1721331388556,2.3502,3411.2,3410.3,0.55746]
[1721331389674,2.4108,3411.6,3410.4,0.35223915]
[1721331389980,0.0537178,3411.8,3410.5,2.345]
[1721331390117,0.0537178,3411.8,3410.5,7.045]
[1721331390457,0.0537178,3411.8,3410.6,0.66505333]
[1721331390686,0.0537178,3411.8,3410.7,0.2936]
[1721331390846,0.0537178,3411.8,3410.9,1.9936]
[1721331391055,0.0537178,3411.8,3410.9,4.9936]
[1721331391256,0.0537178,3411.8,3411.1,0.2936]
[1721331391433,0.0537178,3411.8,3411.2,0.43213]
[1721331399080,0.05282708,3411.7,3411.2,0.43213]
[1721331399371,0.05282708,3411.7,3410.7,7.44]
[1721331399372,2.93122,3411.6,3410.7,7.44]
[1721331399544,0.60270175,3411.6,3410.7,7.44]
[1721331399950,0.05270175,3411.6,3410.7,7.44]
[1721331401287,0.05891229,3411.5,3410.7,7.44]
[1721331401436,4.97245,3411.3,3410.7,7.44]
[1721331401743,0.05245159,3411.2,3410.7,7.44]
[1721331401966,0.11136388,3411.2,3410.7,7.44]
[1721331402167,0.05245159,3411.2,3410.7,7.44]
[1721331403197,4.3574,3411.7,3410.7,7.44]
[1721331403494,0.05234972,3411.1,3410.7,7.44]
[1721331403697,3.55,3411.6,3410.4,0.2936]
[1721331404689,0.05253346,3411.5,3410.4,0.2936]
[1721331405280,0.05253346,3411.5,3410.4,3.2936]
[1721331405680,0.0537178,3411.8,3410.4,3.2936]
[1721331405887,0.0537178,3411.8,3410.6,0.2936]
[1721331406256,2.9311,3411.7,3410.6,0.2936]
[1721331406587,0.0537178,3411.8,3410.6,0.2936]
[1721331406759,0.0537178,3411.8,3410.5,0.2936]
[1721331407392,2.9847278,3411.8,3410.5,0.2936]
[1721331407664,0.59157078,3411.7,3410.6,1.36696]
[1721331408078,0.0537178,3411.8,3410.6,1.36696]
[1721331409603,2.9311,3411.7,3410.6,1.36696]
[1721331409761,2.93128,3411.5,3410.4,3.0]
[1721331409965,0.55,3411.4,3410.4,3.0]
[1721331411195,3.54025229,3411.4,3410.4,3.0]
[1721331411513,0.55,3411.4,3410.4,3.0]
[1721331412002,0.55,3411.4,3410.5,0.2936]
[1721331412209,0.55,3411.4,3410.6,1.36696]
[1721331412903,0.55,3411.4,3410.6,1.07336]
[1721331414005,0.55,3411.4,3410.6,1.36696]
[1721331414217,2.4362,3411.6,3410.6,1.36696]
[1721331417493,0.0537178,3411.8,3410.7,2.2535]
[1721331417686,0.55,3411.7,3410.8,0.362046]
[1721331420276,2.041,3411.5,3410.4,3.0]
[1721331421276,2.93144,3411.3,3410.4,3.0]
[1721331421472,2.041,3411.5,3410.4,3.0]
[1721331421677,2.9847478,3411.8,3410.5,2.3778]
[1721331421915,1.29120478,3411.7,3410.5,2.3778]
[1721331422071,2.93119,3411.6,3410.5,2.3778]
[1721331422393,2.93134,3411.4,3410.5,2.3778]
[1721331422593,4.97227,3411.5,3410.5,2.3778]
[1721331422821,2.3863,3411.3,3410.4,3.0]
[1721331422987,2.3863,3411.3,3410.5,1.044]
[1721331423196,2.041,3411.5,3410.5,1.044]
[1721331423396,0.55,3411.7,3410.7,2.4432]
[1721331423603,0.60891229,3411.7,3410.7,2.4432]
[1721331423923,0.55,3411.7,3410.7,2.4432]
[1721331424074,0.79620178,3411.6,3410.7,2.4432]
[1721331424420,2.041,3411.5,3410.4,2.4432]
[1721331424606,2.041,3411.5,3410.3,7.44]
[1721331424607,2.93154,3411.2,3410.3,7.44]
[1721331424803,3.48141,3411.4,3410.3,7.44]
[1721331425402,3.48141,3411.4,3410.3,7.7336]
[1721331425608,0.92498218,3411.3,3410.3,7.7336]
[1721331425911,3.48141,3411.4,3410.3,7.44]
[1721331425912,0.55,3411.2,3410.3,7.44]
[1721331426221,3.48135,3411.4,3410.3,7.44]
[1721331426390,0.55,3411.4,3410.3,7.44]
[1721331426593,2.041,3411.5,3410.3,7.44]
[1721331426791,2.4400178,3411.8,3410.4,2.4331]
[1721331427028,0.55,3411.7,3410.5,0.98731]
[1721331427539,3.48113,3411.7,3410.6,0.2936]
[1721331427813,0.55,3411.7,3410.6,0.2936]
[1721331428927,0.55,3411.7,3410.7,2.4331]
[1721331429723,0.0537178,3411.8,3410.7,2.4331]
[1721331429926,0.0537178,3411.8,3410.9,2.3291]
[1721331431233,0.0537178,3411.8,3411.0,0.2936]
[1721331433514,0.0537178,3411.8,3411.2,2.3575]
[1721331435045,2.0947178,3412.7,3411.2,2.3575]
[1721331435246,2.041,3412.5,3411.3,8.15799131]
[1721331437376,2.041,3412.1,3411.3,7.44]
[1721331438458,4.97175,3412.1,3411.3,7.44]
[1721331438665,5.03066229,3412.1,3411.3,7.44]